fUSD/lending_fUSD_20260523
["ID","MTS","AMOUNT","RATE_DAILY","PERIOD"]
[422839941,1779505843000,-500.0,0.00013698,2]
[422839951,1779505843000,-1588.0,0.0001372,2]
[422839934,1779505843000,-500.0,0.00013698,2]
[422839943,1779505843000,-299.3113989,0.00013698,2]
[422839935,1779505843000,-500.0,0.00013698,2]
[422840008,1779505844000,-7659.41839253,0.00014389,2]
[422840006,1779505844000,-166.66,0.00014384,2]
[422839996,1779505844000,-500.0,0.00014356,2]
[422839999,1779505844000,-2315.0,0.0001436,2]
[422840001,1779505844000,-2315.0,0.0001436,2]
[422839995,1779505844000,-2000.0,0.00014329,7]
[422839998,1779505844000,-2315.0,0.0001436,2]
[422840004,1779505844000,-1533.31215095,0.00014375,2]
[422839985,1779505844000,-500.0,0.00014249,2]
[422839988,1779505844000,-2398.86879265,0.00014249,2]
[422839991,1779505844000,-2306.80100516,0.0001425,2]
[422839990,1779505844000,-4476.354568,0.0001425,2]
[422839989,1779505844000,-143214.72790763,0.0001425,2]
[422839992,1779505844000,-200.33039717,0.00014252,2]
[422839986,1779505844000,-300.0,0.00014249,2]
[422839987,1779505844000,-421.51951156,0.00014249,2]
[422840002,1779505844000,-2315.0,0.0001436,2]
[422839994,1779505844000,-164.81,0.00014282,2]
[422839997,1779505844000,-1588.0,0.0001436,2]
[422839993,1779505844000,-588.80980333,0.00014261,2]
[422840012,1779505844000,-1200.0,0.00014452,2]
[422840037,1779505844000,-160.0,0.0001232,2]
[422840034,1779505844000,-500.0,0.00014634,2]
[422840035,1779505844000,-311468.20636244,0.00014635,2]
[422840036,1779505844000,-2012.45218495,0.00014635,2]
[422840033,1779505844000,-500.0,0.00014634,2]
[422840032,1779505844000,-500.0,0.00014634,2]
[422840027,1779505844000,-308.0,0.000145,2]
[422840025,1779505844000,-315.0,0.000145,2]
[422840029,1779505844000,-473.83921814,0.00014521,2]
[422840000,1779505844000,-163.0,0.0001436,2]
[422840038,1779505844000,-1083.73843092,0.00014635,2]
[422840028,1779505844000,-1000.0,0.000145,2]
[422840022,1779505844000,-70448.7926953,0.00014481,2]
[422840030,1779505844000,-500.0,0.00014634,2]
[422840019,1779505844000,-844.4732555,0.00014453,2]
[422840017,1779505844000,-262597.6403453,0.00014453,2]
[422840010,1779505844000,-286.29386944,0.00014443,2]
[422840015,1779505844000,-2500.0,0.00014452,2]
[422840031,1779505844000,-455.46575353,0.00014634,2]
[422840043,1779505846000,-45387.0827013,0.00014635,2]
[422840044,1779505846000,-5671.15676677,0.00014635,2]
[422840042,1779505846000,-1973.05,0.00014635,2]
[422840040,1779505846000,-915.0,0.00012029,2]
[422840041,1779505846000,-7980.00215798,0.00014635,2]
[422840058,1779505863000,-262.092846,0.00013192,2]
[422840059,1779506008000,122.5863246,8.198e-05,2]
[422840060,1779506008000,1871.7916754,8.198e-05,2]
[422840061,1779506008000,169.618,8.198e-05,2]
[422840062,1779506020000,444.0,0.00028082,120]
[422840063,1779506041000,666.0,0.00028082,120]
[422840064,1779506111000,156.58,5.155e-05,2]
[422840065,1779506111000,156.58,5.552e-05,2]
[422840067,1779506111000,156.58,6.345e-05,2]
[422840066,1779506111000,156.58,5.948e-05,2]
[422840072,1779506112000,156.58,8.327e-05,2]
[422840071,1779506112000,156.58,7.931e-05,2]
[422840070,1779506112000,156.58,7.534e-05,2]
[422840069,1779506112000,156.58,7.138e-05,2]
[422840068,1779506112000,156.58,6.741e-05,2]
[422840073,1779506195000,-1200.0,8.363e-05,2]
[422840075,1779506195000,-300.0,8.363e-05,2]
[422840074,1779506195000,-300.0,8.363e-05,2]
[422840079,1779506196000,-191.02345918,8.364e-05,2]
[422840080,1779506196000,-500.0,8.364e-05,2]
[422840078,1779506196000,-568.70989872,8.364e-05,2]
[422840077,1779506196000,-150.0,8.364e-05,2]
[422840076,1779506196000,-250.0,8.364e-05,2]
[422840081,1779506196000,-495.2666421,8.364e-05,2]
[422840084,1779506377000,8005.0,0.00028,120]
[422840085,1779506393000,96.37702371,8.313e-05,2]
[422840086,1779506393000,403.62297629,8.313e-05,2]
[422840088,1779506480000,519.8669,8.265e-05,2]
[422840089,1779506559000,2257.36,8.219e-05,2]
[422840091,1779506580000,2288.04317718,7.995e-05,2]
[422840090,1779506580000,366.15682282,7.995e-05,2]
[422840094,1779506608000,169.618,8.198e-05,2]
[422840092,1779506608000,1258.96352193,8.198e-05,2]
[422840093,1779506608000,336.53847807,8.198e-05,2]
[422840096,1779506640000,1742.60022104,8.004e-05,2]
[422840097,1779506640000,0.12977896,8.004e-05,2]
[422840095,1779506640000,1298.25,8.004e-05,2]
[422840098,1779506679000,200.0,8.033e-05,2]
[422840099,1779506735000,658.03,8.335e-05,2]
[422840101,1779506842000,166.12,8.219e-05,2]
[422840102,1779506875000,500.0,8.084e-05,2]
[422840103,1779506892000,1852.42,8.057e-05,2]
[422840104,1779506907000,170.30692015,3.885e-05,2]
[422840105,1779506907000,214.97307985,3.885e-05,2]
[422840107,1779506907000,385.28,4.293e-05,2]
[422840106,1779506907000,385.28,4.089e-05,2]
[422840112,1779506908000,385.28,5.316e-05,2]
[422840111,1779506908000,385.28,5.111e-05,2]
[422840110,1779506908000,385.28,4.907e-05,2]
[422840109,1779506908000,385.28,4.702e-05,2]
[422840108,1779506908000,385.28,4.498e-05,2]
[422840118,1779506909000,385.28,6.338e-05,2]
[422840117,1779506909000,385.28,6.133e-05,2]
[422840116,1779506909000,385.28,5.929e-05,2]
[422840115,1779506909000,135.48638074,5.724e-05,2]
[422840114,1779506909000,249.79361926,5.724e-05,2]
[422840113,1779506909000,385.28,5.52e-05,2]
[422840119,1779506910000,385.28,6.542e-05,2]
[422840121,1779506910000,385.28,6.951e-05,2]
[422840122,1779506910000,385.28,7.156e-05,2]
[422840120,1779506910000,385.28,6.747e-05,2]
[422840126,1779506911000,385.28,7.769e-05,2]
[422840125,1779506911000,55.99968163,7.564e-05,2]
[422840124,1779506911000,329.28031837,7.564e-05,2]
[422840123,1779506911000,385.28,7.36e-05,2]
[422840127,1779506941000,1000.0,0.00028081,120]
[422840136,1779507032000,-516.80872837,8.178e-05,2]
[422840137,1779507032000,-0.85,8.178e-05,2]
[422840138,1779507032000,-2295.0,8.178e-05,2]
[422840187,1779507038000,-165.32,8.486e-05,2]
[422840185,1779507038000,-150.0,8.448e-05,2]
[422840191,1779507038000,-160.0,8.557e-05,2]
[422840189,1779507038000,-150.0,8.532e-05,2]
[422840188,1779507038000,-9999.99,8.486e-05,2]
[422840186,1779507038000,-160.55808547,8.46e-05,2]
[422840183,1779507038000,-150.0,8.364e-05,2]
[422840178,1779507038000,-500.0,8.264e-05,2]
[422840182,1779507038000,-250.0,8.364e-05,2]
[422840181,1779507038000,-300.0,8.363e-05,2]
[422840180,1779507038000,-206.20401749,8.363e-05,2]
[422840179,1779507038000,-1200.0,8.362e-05,2]
[422840177,1779507038000,-2000.0,8.219e-05,2]
[422840176,1779507038000,-2544.35516563,8.178e-05,2]
[422840184,1779507038000,-1000.0,8.364e-05,2]
[422840190,1779507038000,-208.78535381,8.557e-05,2]
[422840209,1779507038000,-18433.0,8.85e-05,2]
[422840194,1779507038000,-150.0,8.615e-05,2]
[422840193,1779507038000,-444.0,8.615e-05,2]
[422840208,1779507038000,-417.0,8.842e-05,2]
[422840206,1779507038000,-17106.0,8.815e-05,2]
[422840204,1779507038000,-165.32,8.766e-05,2]
[422840205,1779507038000,-195.0,8.783e-05,2]
[422840201,1779507038000,-1870.13,8.743e-05,2]
[422840198,1779507038000,-156.58,8.724e-05,2]
[422840207,1779507038000,-8787.0,8.832e-05,2]
[422840199,1779507038000,-166.12,8.733e-05,2]
[422840195,1779507038000,-599.88838523,8.685e-05,2]
[422840203,1779507038000,-10396.0,8.756e-05,2]
[422840200,1779507038000,-10078.0,8.738e-05,2]
[422840197,1779507038000,-150.0,8.699e-05,2]
[422840196,1779507038000,-555.0,8.699e-05,2]
[422840202,1779507038000,-426.5184312,8.754e-05,2]
[422840192,1779507038000,-215.31523495,8.568e-05,2]
[422840252,1779507039000,-277.58240035,8.926e-05,2]
[422840253,1779507039000,-150.0,8.926e-05,2]
[422840251,1779507039000,-500.0,8.926e-05,2]
[422840250,1779507039000,-150.0,8.926e-05,2]
[422840249,1779507039000,-164.24286332,8.926e-05,2]
[422840246,1779507039000,-150.0,8.926e-05,2]
[422840247,1779507039000,-500.0,8.926e-05,2]
[422840244,1779507039000,-500.0,8.926e-05,2]
[422840245,1779507039000,-150.0,8.926e-05,2]
[422840237,1779507039000,-500.0,8.926e-05,2]
[422840254,1779507039000,-500.0,8.926e-05,2]
[422840248,1779507039000,-150.0,8.926e-05,2]
[422840213,1779507039000,-433.87,8.864e-05,2]
[422840259,1779507039000,-500.0,8.926e-05,2]
[422840256,1779507039000,-179.70896311,8.926e-05,2]
[422840257,1779507039000,-500.0,8.926e-05,2]
[422840262,1779507039000,-500.0,8.926e-05,2]
[422840258,1779507039000,-500.0,8.926e-05,2]
[422840261,1779507039000,-262.91457291,8.926e-05,2]
[422840260,1779507039000,-500.0,8.926e-05,2]
[422840243,1779507039000,-218.32385701,8.926e-05,2]
[422840263,1779507039000,-500.0,8.926e-05,2]
[422840264,1779507039000,-500.0,8.926e-05,2]
[422840266,1779507039000,-500.0,8.926e-05,2]
[422840265,1779507039000,-500.0,8.926e-05,2]
[422840267,1779507039000,-500.0,8.926e-05,2]
[422840272,1779507039000,-500.0,8.926e-05,2]
[422840255,1779507039000,-500.0,8.926e-05,2]
[422840240,1779507039000,-500.0,8.926e-05,2]
[422840234,1779507039000,-500.0,8.926e-05,2]
[422840274,1779507039000,-500.0,8.926e-05,2]
[422840216,1779507039000,-1123.23,8.864e-05,2]
[422840210,1779507039000,-175.0,8.859e-05,2]
[422840211,1779507039000,-9999.99,8.864e-05,2]
[422840212,1779507039000,-9999.99,8.864e-05,2]
[422840215,1779507039000,-9999.99,8.864e-05,2]
[422840214,1779507039000,-299.99,8.864e-05,2]
[422840218,1779507039000,-4999.99,8.864e-05,2]
[422840217,1779507039000,-150.99,8.864e-05,2]
[422840220,1779507039000,-499.99,8.864e-05,2]
[422840219,1779507039000,-999.99,8.864e-05,2]
[422840222,1779507039000,-9999.99,8.864e-05,2]
[422840221,1779507039000,-3223.62,8.864e-05,2]
[422840223,1779507039000,-500.0,8.864e-05,2]
[422840241,1779507039000,-500.0,8.926e-05,2]
[422840229,1779507039000,-241.49613066,8.926e-05,2]
[422840225,1779507039000,-9880.03,8.885e-05,2]
[422840230,1779507039000,-500.0,8.926e-05,2]
[422840228,1779507039000,-500.0,8.926e-05,2]
[422840224,1779507039000,-170.0,8.877e-05,2]
[422840226,1779507039000,-500.0,8.926e-05,2]
[422840232,1779507039000,-500.0,8.926e-05,2]
[422840231,1779507039000,-500.0,8.926e-05,2]
[422840233,1779507039000,-500.0,8.926e-05,2]
[422840236,1779507039000,-500.0,8.926e-05,2]
[422840235,1779507039000,-500.0,8.926e-05,2]
[422840238,1779507039000,-263.99767184,8.926e-05,2]
[422840239,1779507039000,-380.71391786,8.926e-05,2]
[422840242,1779507039000,-150.0,8.926e-05,2]
[422840227,1779507039000,-150.0,8.926e-05,2]
[422840275,1779507039000,-500.0,8.926e-05,2]
[422840286,1779507039000,-150.0,8.926e-05,2]
[422840270,1779507039000,-500.0,8.926e-05,2]
[422840309,1779507039000,-165.32,9.887e-05,2]
[422840310,1779507039000,-156.58,9.914e-05,2]
[422840308,1779507039000,-166.12,9.76e-05,2]
[422840307,1779507039000,-165.32,9.607e-05,2]
[422840314,1779507039000,-1178.60073042,0.0001,2]
[422840312,1779507039000,-213.10203257,0.0001,2]
[422840311,1779507039000,-213.10203257,0.0001,2]
[422840313,1779507039000,-213.10203257,0.0001,2]
[422840315,1779507039000,-5843.02548432,0.0001,2]
[422840317,1779507039000,-163.47,0.0001,2]
[422840318,1779507039000,-4000.0,0.00010027,2]
[422840316,1779507039000,-150.0,0.0001,2]
[422840321,1779507039000,-433.0,0.00010121,2]
[422840323,1779507039000,-2000.0,0.00010274,2]
[422840319,1779507039000,-262.72305528,0.000101,2]
[422840322,1779507039000,-166.12,0.00010274,2]
[422840325,1779507039000,-89279.91839165,0.000103,2]
[422840326,1779507039000,-156.58,0.0001031,2]
[422840327,1779507039000,-658.03,0.00010419,2]
[422840324,1779507039000,-4000.0,0.00010278,2]
[422840320,1779507039000,-2351.0,0.00010118,2]
[422840331,1779507039000,-500.0,0.00010626,2]
[422840330,1779507039000,-500.0,0.00010626,2]
[422840332,1779507039000,-395.76559342,0.00010626,2]
[422840329,1779507039000,-4000.0,0.00010529,2]
[422840333,1779507039000,-500.0,0.00010626,2]
[422840269,1779507039000,-500.0,8.926e-05,2]
[422840306,1779507039000,-156.58,9.517e-05,2]
[422840303,1779507039000,-2000.0,9.247e-05,2]
[422840304,1779507039000,-165.32,9.327e-05,2]
[422840302,1779507039000,-166.12,9.247e-05,2]
[422840268,1779507039000,-500.0,8.926e-05,2]
[422840305,1779507039000,-658.03,9.377e-05,2]
[422840271,1779507039000,-516.03677242,8.926e-05,2]
[422840273,1779507039000,-500.0,8.926e-05,2]
[422840278,1779507039000,-500.0,8.926e-05,2]
[422840279,1779507039000,-150.0,8.926e-05,2]
[422840276,1779507039000,-577.73078257,8.926e-05,2]
[422840277,1779507039000,-150.0,8.926e-05,2]
[422840280,1779507039000,-150.0,8.926e-05,2]
[422840287,1779507039000,-150.0,8.926e-05,2]
[422840281,1779507039000,-500.0,8.926e-05,2]
[422840284,1779507039000,-495.87485976,8.926e-05,2]
[422840282,1779507039000,-150.0,8.926e-05,2]
[422840283,1779507039000,-150.0,8.926e-05,2]
[422840285,1779507039000,-150.0,8.926e-05,2]
[422840288,1779507039000,-150.0,8.926e-05,2]
[422840293,1779507039000,-156.58,9.121e-05,2]
[422840301,1779507039000,-255.0,9.201e-05,2]
[422840289,1779507039000,-151.73978497,8.926e-05,2]
[422840296,1779507039000,-207.0,9.199e-05,2]
[422840298,1779507039000,-250.0,9.2e-05,2]
[422840300,1779507039000,-209.27481089,9.2e-05,2]
[422840297,1779507039000,-303.4850149,9.2e-05,2]
[422840299,1779507039000,-382.70538527,9.2e-05,2]
[422840295,1779507039000,-1680.0,9.198e-05,2]
[422840292,1779507039000,-165.32,9.047e-05,2]
[422840290,1779507039000,-184.48877466,8.926e-05,2]
[422840291,1779507039000,-250.0,8.996e-05,2]
[422840294,1779507039000,-504.13866721,9.138e-05,2]
[422840381,1779507040000,-2257.36,0.00011507,2]
[422840377,1779507040000,-8628.46231148,0.0001126,2]
[422840376,1779507040000,-188.34,0.00011233,2]
[422840373,1779507040000,-4066.97491681,0.00011156,2]
[422840367,1779507040000,-8628.4623115,0.00011099,2]
[422840372,1779507040000,-736.0,0.00011133,2]
[422840370,1779507040000,-8628.46231148,0.00011099,2]
[422840366,1779507040000,-4000.0,0.0001103,2]
[422840362,1779507040000,-4066.97491681,0.000109,2]
[422840382,1779507040000,-613.65133702,0.00011682,2]
[422840371,1779507040000,-3292.0,0.0001113,2]
[422840380,1779507040000,-658.03,0.00011461,2]
[422840392,1779507040000,-658.03,0.00012503,2]
[422840379,1779507040000,-2000.0,0.00011301,2]
[422840375,1779507040000,-200.0,0.00011205,2]
[422840378,1779507040000,-166.12,0.00011301,2]
[422840383,1779507040000,-166.12,0.00011815,2]
[422840385,1779507040000,-4066.97491681,0.00012092,2]
[422840384,1779507040000,-8628.46231148,0.00011988,2]
[422840386,1779507040000,-4609.0,0.00012243,2]
[422840388,1779507040000,-471.57315342,0.00012277,2]
[422840390,1779507040000,-166.12,0.00012329,2]
[422840387,1779507040000,-1252.0,0.00012246,2]
[422840389,1779507040000,-239.62,0.00012329,2]
[422840391,1779507040000,-2000.0,0.00012329,2]
[422840361,1779507040000,-4066.97491683,0.000109,2]
[422840374,1779507040000,-1314.85443165,0.000112,2]
[422840365,1779507040000,-150.0,0.00010959,2]
[422840347,1779507040000,-500.0,0.00010626,2]
[422840364,1779507040000,-150.0,0.00010959,2]
[422840334,1779507040000,-500.0,0.00010626,2]
[422840337,1779507040000,-500.0,0.00010626,2]
[422840339,1779507040000,-500.0,0.00010626,2]
[422840341,1779507040000,-500.0,0.00010626,2]
[422840338,1779507040000,-500.0,0.00010626,2]
[422840340,1779507040000,-500.0,0.00010626,2]
[422840336,1779507040000,-500.0,0.00010626,2]
[422840342,1779507040000,-500.0,0.00010626,2]
[422840345,1779507040000,-500.0,0.00010626,2]
[422840343,1779507040000,-500.0,0.00010626,2]
[422840344,1779507040000,-500.0,0.00010626,2]
[422840346,1779507040000,-500.0,0.00010626,2]
[422840350,1779507040000,-500.0,0.00010626,2]
[422840348,1779507040000,-500.0,0.00010626,2]
[422840349,1779507040000,-500.0,0.00010626,2]
[422840394,1779507040000,-1224.0,0.00012646,2]
[422840353,1779507040000,-398.0969291,0.00010699,2]
[422840352,1779507040000,-500.0,0.00010699,2]
[422840351,1779507040000,-350.58256847,0.00010626,2]
[422840354,1779507040000,-304.04519549,0.00010699,2]
[422840356,1779507040000,-531.58342272,0.00010699,2]
[422840358,1779507040000,-4000.0,0.00010779,2]
[422840357,1779507040000,-753208.25043292,0.000107,2]
[422840359,1779507040000,-166.12,0.00010788,2]
[422840360,1779507040000,-250.0,0.00010806,2]
[422840363,1779507040000,-4066.97491681,0.000109,2]
[422840369,1779507040000,-8628.46231148,0.00011099,2]
[422840368,1779507040000,-8628.46231148,0.00011099,2]
[422840393,1779507040000,-1273.963,0.00012646,2]
[422840335,1779507040000,-500.0,0.00010626,2]
[422840396,1779507040000,-627.02,0.00012646,2]
[422840429,1779507040000,-466.80936764,0.00013698,2]
[422840430,1779507040000,-500.0,0.00013698,2]
[422840432,1779507040000,-500.0,0.00013698,2]
[422840434,1779507040000,-500.0,0.00013698,2]
[422840433,1779507040000,-500.0,0.00013698,2]
[422840439,1779507040000,-500.0,0.00013698,2]
[422840431,1779507040000,-500.0,0.00013698,2]
[422840435,1779507040000,-500.0,0.00013698,2]
[422840436,1779507040000,-500.0,0.00013698,2]
[422840437,1779507040000,-500.0,0.00013698,2]
[422840438,1779507040000,-500.0,0.00013698,2]
[422840440,1779507040000,-500.0,0.00013698,2]
[422840441,1779507040000,-500.0,0.00013698,2]
[422840428,1779507040000,-500.0,0.00013698,2]
[422840442,1779507040000,-500.0,0.00013698,2]
[422840447,1779507040000,-500.0,0.00013698,2]
[422840448,1779507040000,-500.0,0.00013698,2]
[422840444,1779507040000,-500.0,0.00013698,2]
[422840445,1779507040000,-616.04880617,0.00013698,2]
[422840452,1779507040000,-500.0,0.00013698,2]
[422840451,1779507040000,-500.0,0.00013698,2]
[422840446,1779507040000,-500.0,0.00013698,2]
[422840450,1779507040000,-500.0,0.00013698,2]
[422840449,1779507040000,-500.0,0.00013698,2]
[422840453,1779507040000,-500.0,0.00013698,2]
[422840454,1779507040000,-500.0,0.00013698,2]
[422840455,1779507040000,-500.0,0.00013698,2]
[422840395,1779507040000,-3551.603,0.00012646,2]
[422840443,1779507040000,-508.78567005,0.00013698,2]
[422840427,1779507040000,-501.56156198,0.00013698,2]
[422840355,1779507040000,-217.00068447,0.00010699,2]
[422840424,1779507040000,-500.0,0.00013698,2]
[422840399,1779507040000,-500.0,0.00012712,2]
[422840423,1779507040000,-2216.68776861,0.00013697,2]
[422840397,1779507040000,-1156.93,0.00012706,2]
[422840398,1779507040000,-286.29386944,0.00012706,2]
[422840403,1779507040000,-163.0,0.000134,2]
[422840400,1779507040000,-8628.46231148,0.00012716,2]
[422840402,1779507040000,-163.0,0.000134,2]
[422840401,1779507040000,-229.011743,0.00013175,2]
[422840405,1779507040000,-1588.0,0.000134,2]
[422840406,1779507040000,-180.017034,0.00013424,2]
[422840407,1779507040000,-8628.46231148,0.00013444,2]
[422840412,1779507040000,-150.00000001,0.00013488,2]
[422840411,1779507040000,-150.0,0.00013488,2]
[422840415,1779507040000,-150.0,0.00013488,2]
[422840404,1779507040000,-2315.0,0.000134,2]
[422840414,1779507040000,-150.0,0.00013488,2]
[422840420,1779507040000,-371.80999094,0.00013697,2]
[422840421,1779507040000,-7645.182016,0.00013697,2]
[422840409,1779507040000,-982.0,0.00013475,2]
[422840425,1779507040000,-501.29264556,0.00013698,2]
[422840426,1779507040000,-500.0,0.00013698,2]
[422840419,1779507040000,-228.5837534,0.00013624,2]
[422840422,1779507040000,-3684.93386586,0.00013697,2]
[422840418,1779507040000,-1000.0,0.000135,2]
[422840416,1779507040000,-150.0,0.00013488,2]
[422840408,1779507040000,-6453.0,0.00013467,2]
[422840413,1779507040000,-150.0,0.00013488,2]
[422840410,1779507040000,-150.00000001,0.00013488,2]
[422840417,1779507040000,-150.0,0.00013488,2]
[422840499,1779507041000,-500.0,0.00013698,2]
[422840500,1779507041000,-500.0,0.00013698,2]
[422840501,1779507041000,-500.0,0.00013698,2]
[422840498,1779507041000,-500.0,0.00013698,2]
[422840495,1779507041000,-500.0,0.00013698,2]
[422840491,1779507041000,-500.0,0.00013698,2]
[422840492,1779507041000,-500.0,0.00013698,2]
[422840494,1779507041000,-500.0,0.00013698,2]
[422840493,1779507041000,-500.0,0.00013698,2]
[422840489,1779507041000,-346.25073127,0.00013698,2]
[422840503,1779507041000,-500.0,0.00013698,2]
[422840497,1779507041000,-500.0,0.00013698,2]
[422840496,1779507041000,-500.0,0.00013698,2]
[422840516,1779507041000,-786.24,0.00013698,2]
[422840506,1779507041000,-500.0,0.00013698,2]
[422840504,1779507041000,-500.0,0.00013698,2]
[422840507,1779507041000,-500.0,0.00013698,2]
[422840505,1779507041000,-500.0,0.00013698,2]
[422840508,1779507041000,-500.0,0.00013698,2]
[422840512,1779507041000,-500.0,0.00013698,2]
[422840517,1779507041000,-786.24,0.00013698,2]
[422840511,1779507041000,-500.0,0.00013698,2]
[422840510,1779507041000,-500.0,0.00013698,2]
[422840515,1779507041000,-786.24,0.00013698,2]
[422840513,1779507041000,-500.0,0.00013698,2]
[422840509,1779507041000,-500.0,0.00013698,2]
[422840483,1779507041000,-500.0,0.00013698,2]
[422840514,1779507041000,-500.0,0.00013698,2]
[422840502,1779507041000,-500.0,0.00013698,2]
[422840488,1779507041000,-500.0,0.00013698,2]
[422840475,1779507041000,-500.0,0.00013698,2]
[422840485,1779507041000,-500.0,0.00013698,2]
[422840456,1779507041000,-500.0,0.00013698,2]
[422840459,1779507041000,-500.0,0.00013698,2]
[422840457,1779507041000,-500.0,0.00013698,2]
[422840458,1779507041000,-500.0,0.00013698,2]
[422840460,1779507041000,-500.0,0.00013698,2]
[422840461,1779507041000,-500.0,0.00013698,2]
[422840462,1779507041000,-500.0,0.00013698,2]
[422840464,1779507041000,-500.0,0.00013698,2]
[422840463,1779507041000,-500.0,0.00013698,2]
[422840465,1779507041000,-500.0,0.00013698,2]
[422840467,1779507041000,-500.0,0.00013698,2]
[422840466,1779507041000,-429.9949267,0.00013698,2]
[422840468,1779507041000,-629.55339869,0.00013698,2]
[422840472,1779507041000,-500.0,0.00013698,2]
[422840486,1779507041000,-500.0,0.00013698,2]
[422840473,1779507041000,-500.0,0.00013698,2]
[422840471,1779507041000,-500.0,0.00013698,2]
[422840474,1779507041000,-500.0,0.00013698,2]
[422840518,1779507041000,-166.66,0.00013699,2]
[422840470,1779507041000,-500.0,0.00013698,2]
[422840476,1779507041000,-500.0,0.00013698,2]
[422840477,1779507041000,-500.0,0.00013698,2]
[422840480,1779507041000,-500.0,0.00013698,2]
[422840479,1779507041000,-500.0,0.00013698,2]
[422840481,1779507041000,-524.90220776,0.00013698,2]
[422840478,1779507041000,-500.0,0.00013698,2]
[422840487,1779507041000,-500.0,0.00013698,2]
[422840490,1779507041000,-500.0,0.00013698,2]
[422840482,1779507041000,-500.0,0.00013698,2]
[422840484,1779507041000,-500.0,0.00013698,2]
[422840469,1779507041000,-500.0,0.00013698,2]
[422840521,1779507041000,-1000.0,0.00013699,2]
[422840524,1779507041000,-232.053208,0.0001372,2]
[422840519,1779507041000,-200.0,0.00013699,2]
[422840556,1779507041000,-303.40637874,0.00014249,2]
[422840559,1779507041000,-500.0,0.00014249,2]
[422840558,1779507041000,-500.0,0.00014249,2]
[422840560,1779507041000,-500.0,0.00014249,2]
[422840561,1779507041000,-500.0,0.00014249,2]
[422840520,1779507041000,-2500.0,0.00013699,2]
[422840562,1779507041000,-500.0,0.00014249,2]
[422840564,1779507041000,-500.0,0.00014249,2]
[422840565,1779507041000,-500.0,0.00014249,2]
[422840566,1779507041000,-500.0,0.00014249,2]
[422840569,1779507041000,-143214.72790763,0.0001425,2]
[422840567,1779507041000,-786.24,0.00014249,2]
[422840568,1779507041000,-4476.354568,0.0001425,2]
[422840571,1779507041000,-200.33039717,0.00014252,2]
[422840570,1779507041000,-2306.80100516,0.0001425,2]
[422840573,1779507041000,-166.66,0.00014384,2]
[422840572,1779507041000,-2315.0,0.0001436,2]
[422840574,1779507041000,-150.0,0.00014387,2]
[422840575,1779507041000,-1533.312151,0.000144,2]
[422840577,1779507041000,-1533.31215095,0.00014483,2]
[422840576,1779507041000,-5679.37299434,0.000144,4]
[422840578,1779507041000,-500.0,0.00014489,2]
[422840580,1779507041000,-500.0,0.00014489,2]
[422840581,1779507041000,-500.0,0.00014489,2]
[422840579,1779507041000,-500.0,0.00014489,2]
[422840582,1779507041000,-500.0,0.00014489,2]
[422840583,1779507041000,-500.0,0.00014489,2]
[422840585,1779507041000,-500.0,0.00014489,2]
[422840584,1779507041000,-500.0,0.00014489,2]
[422840553,1779507041000,-166.66,0.00014247,2]
[422840552,1779507041000,-37159.29915188,0.000142,2]
[422840563,1779507041000,-500.0,0.00014249,2]
[422840557,1779507041000,-500.0,0.00014249,2]
[422840522,1779507041000,-1000.0,0.00013699,15]
[422840527,1779507041000,-2315.0,0.0001372,2]
[422840526,1779507041000,-2315.0,0.0001372,2]